bitfinex/quotes_ETHUSD_20260310
["timestamp","ask_amount","ask_price","bid_price","bid_amount"]
[1773165493612,0.46510431,2073.2,2072.5,1.20627261]
[1773165493835,0.50132974,2073.2,2072.5,1.20627261]
[1773165494910,0.50132974,2073.2,2072.0,4.82610656]
[1773165495214,0.46510431,2073.0,2072.1,0.46705533]
[1773165497183,1.67114415,2072.9,2072.2,1.20644725]
[1773165498908,1.67114415,2072.9,2072.2,1.20754725]
[1773165499116,0.001,2072.7,2072.2,1.20754725]
[1773165499788,0.001,2072.7,2072.3,0.46705533]
[1773165501791,0.001,2072.7,2072.4,1.67338615]
[1773165502194,0.001,2072.7,2072.4,4.00094781]
[1773165502599,0.001,2072.7,2072.4,1.20633082]
[1773165503304,0.45400266,2072.7,2072.4,1.20633082]
[1773165503891,0.45400266,2072.7,2072.2,0.0011]
[1773165504293,0.001,2072.7,2072.2,0.46815533]
[1773165504914,0.45400266,2072.7,2072.2,0.0011]
[1773165508904,0.45300266,2072.6,2072.2,0.0011]
[1773165509104,0.45300266,2072.6,2072.2,0.0273137]
[1773165509323,0.45300266,2072.6,2072.2,0.0011]
[1773165509709,0.45300266,2072.6,2072.2,0.04935789]
[1773165511027,0.001,2072.7,2072.3,1.20638903]
[1773165511233,0.45400266,2072.7,2072.4,0.04825323]
[1773165511623,0.45400266,2072.7,2072.4,0.04935323]
[1773165513333,0.45400266,2072.7,2072.4,1.25563651]
[1773165514728,0.001,2072.7,2072.4,1.25563651]
[1773165514930,0.001,2072.7,2072.4,1.73089044]
[1773165515134,0.001,2072.7,2072.4,1.25563651]
[1773165515631,0.001,2072.7,2072.4,1.73089044]
[1773165517765,0.001,2072.7,2072.4,1.25563651]
[1773165517922,0.45400266,2072.7,2072.4,1.20738328]
[1773165520144,0.45400266,2072.7,2072.4,0.0011]
[1773165521746,0.49022809,2072.7,2072.4,0.0011]
[1773165521967,0.45400266,2072.7,2072.4,0.0011]
[1773165522147,1.65925939,2072.6,2072.4,0.0011]
[1773165522355,0.45300266,2072.6,2072.4,0.0011]
[1773165526270,0.001,2072.5,2072.4,0.0011]
[1773165527042,0.001,2072.7,2072.4,0.47635393]
[1773165529562,0.001,2072.7,2072.5,1.20627261]
[1773165530492,0.49734986,2072.7,2072.5,1.20627261]
[1773165530870,0.49734986,2072.7,2072.4,1.20740096]
[1773165532091,0.49734986,2072.7,2072.4,0.47912765]
[1773165532092,0.001,2072.7,2072.4,0.47912765]
[1773165534399,0.001,2072.7,2072.5,1.20627261]
[1773165537098,0.001,2072.7,2072.4,4.82627202]
[1773165539811,0.001,2072.7,2072.6,0.0011]
[1773165540105,0.001,2072.5,2072.4,0.0011]
[1773165540806,0.001,2072.7,2072.4,0.47912765]
[1773165541180,0.28384467,2072.7,2072.4,0.0011]
[1773165541406,0.3200701,2072.7,2072.4,0.0011]
[1773165542076,0.28284467,2072.6,2072.2,0.0011]
[1773165545324,1.48911433,2072.6,2072.2,0.0011]
[1773165545630,0.28174467,2072.4,2072.0,1.20766171]
[1773165547529,1.20717784,2072.7,2072.1,0.51242526]
[1773165547707,0.03622543,2072.6,2072.2,1.40957539]
[1773165547903,0.03722543,2072.7,2072.2,1.40957539]
[1773165548307,0.28274467,2072.7,2072.2,1.40957539]
[1773165548516,4.82370681,2073.1,2072.2,1.40957539]
[1773165548517,1.4875519,2073.3,2072.7,0.47802765]
[1773165548715,0.3179701,2073.2,2072.7,0.47802765]
[1773165549121,0.3179701,2073.2,2072.5,0.47802765]
[1773165550097,1.52386104,2073.2,2072.6,1.20621441]
[1773165550299,1.52386104,2073.2,2072.6,2.13776215]
[1773165550503,0.28174467,2073.8,2073.1,0.47802765]
[1773165550841,0.28174467,2073.8,2072.9,0.47802765]
[1773165550998,0.28174467,2073.7,2072.9,0.47802765]
[1773165552207,0.28174467,2073.5,2073.0,1.20598166]
[1773165552799,0.28174467,2073.5,2072.9,1.68402447]
[1773165552996,0.28174467,2073.5,2072.9,1.20599682]
[1773165554719,0.28174467,2073.5,2072.8,1.20605768]
[1773165554720,0.28174467,2073.3,2072.8,1.20605768]
[1773165554924,0.28174467,2073.3,2072.7,1.20610893]
[1773165555403,0.28174467,2073.3,2072.5,1.20623779]
[1773165556035,0.28174467,2073.3,2072.5,1.68426544]
[1773165557028,1.20586532,2073.2,2072.5,1.68426544]
[1773165557234,1.48760999,2073.2,2072.5,1.68426544]
[1773165557829,0.28174467,2073.1,2072.5,1.68426544]
[1773165558428,0.28174467,2073.1,2072.6,0.47802765]
[1773165559037,0.28174467,2073.1,2072.4,1.6854353]
[1773165559330,0.28174467,2072.9,2072.4,1.68541648]
[1773165559833,0.28174467,2072.9,2072.4,0.0011]
[1773165560215,0.28174467,2072.9,2072.4,1.69860297]
[1773165560735,1.20598166,2073.0,2072.5,0.49117383]
[1773165561141,1.20609803,2072.8,2072.5,0.49117383]
[1773165561339,1.48783174,2072.9,2072.5,1.69744543]
[1773165561709,0.28174467,2072.9,2072.5,1.69744543]
[1773165561939,0.28174467,2073.1,2072.6,0.49117383]
[1773165562134,1.48766834,2073.1,2072.6,0.49117383]
[1773165562634,0.28174467,2073.1,2072.6,0.49117383]
[1773165562828,1.4876906,2073.1,2072.6,0.49117383]
[1773165565140,0.28174467,2073.0,2072.4,0.0011]
[1773165565515,0.28274467,2073.0,2072.4,0.0011]
[1773165565721,0.28274467,2073.0,2072.5,0.0011]
[1773165566321,0.28064467,2072.9,2072.5,0.0011]
[1773165567151,1.4867427,2072.8,2072.5,0.0011]
[1773165567943,1.4867427,2072.8,2072.2,0.0011]
[1773165567944,0.28064467,2072.7,2072.2,0.0011]
[1773165569251,1.20621441,2072.6,2072.2,0.0011]
[1773165569418,0.28064467,2072.5,2072.2,0.0011]
[1773165571653,1.48697427,2072.5,2072.2,0.0011]
[1773165572248,1.2063296,2072.5,2072.2,0.0011]
[1773165572851,1.48697427,2072.5,2072.2,0.0011]
[1773165573537,1.20626689,2072.6,2072.2,0.49227383]
[1773165573739,1.4867427,2072.9,2072.4,0.49117383]
[1773165574148,0.28064467,2072.8,2072.4,0.49117383]
[1773165574932,0.28064467,2072.8,2072.2,0.49227383]
[1773165575259,0.28064467,2072.7,2072.2,0.49227383]
[1773165575459,1.161,2072.6,2072.2,0.49227383]
[1773165576065,2.36725064,2072.6,2072.2,1.69871571]
[1773165577041,2.36725064,2072.6,2072.2,0.49227383]
[1773165577457,2.36725064,2072.6,2072.4,0.0011]
[1773165579658,1.163,2072.6,2072.5,0.49117383]
[1773165579857,1.163,2072.6,2072.4,0.49227383]
[1773165580047,1.163,2072.6,2072.4,0.0011]
[1773165580352,1.163,2072.6,2072.4,0.49227383]
[1773165580938,2.36921609,2072.6,2072.4,0.0011]
[1773165581247,1.163,2072.6,2072.4,0.0011]
[1773165581957,2.36921839,2072.6,2072.4,0.0011]
[1773165582125,2.64986306,2072.6,2072.2,0.0011]
[1773165582329,2.64986306,2072.6,2072.2,1.69871645]
[1773165583365,1.164,2072.5,2072.2,1.69871645]
[1773165584153,1.164,2072.5,2072.2,1.20754262]
[1773165584332,1.164,2072.5,2072.3,0.49117383]
[1773165585258,2.37027661,2072.5,2072.3,0.49117383]
[1773165585434,2.37027661,2072.5,2072.2,0.49227383]
[1773165585757,1.164,2072.5,2072.2,0.49227383]
[1773165586064,2.37027805,2072.5,2072.2,0.49227383]
[1773165586359,1.164,2072.5,2072.2,0.49227383]
[1773165587141,2.37029351,2072.5,2072.2,0.49227383]
[1773165587802,1.164,2072.5,2072.2,0.49227383]
[1773165587949,1.164,2072.5,2072.2,1.69872041]
[1773165588272,2.65092876,2072.5,2072.2,0.0011]
[1773165588576,2.65092876,2072.5,2072.2,1.66080807]
[1773165588577,1.164,2072.5,2072.2,1.66080807]
[1773165589271,0.001,2073.0,2072.3,0.46038406]
[1773165589562,5.99018639,2072.9,2072.4,0.46148406]
[1773165589957,6.27083106,2072.9,2072.4,0.46148406]
[1773165590650,0.28064467,2072.8,2072.4,0.46148406]
[1773165592196,1.20615622,2072.7,2072.4,0.46148406]
[1773165594898,5.10521096,2072.8,2072.4,0.46148406]
[1773165596298,11.58521096,2072.8,2072.4,0.46148406]
[1773165597296,0.28064467,2072.7,2072.4,0.0011]
[1773165597683,1.169,2072.6,2072.4,0.46148406]
[1773165600214,2.37521721,2072.6,2072.4,0.46148406]
[1773165600415,1.169,2072.6,2072.5,1e-08]
[1773165600608,1.169,2072.6,2072.4,0.0011]
[1773165600913,1.169,2072.6,2072.4,0.46148406]
[1773165601112,2.37522113,2072.6,2072.4,0.46148406]
[1773165601318,2.37522113,2072.6,2072.2,0.46148406]
[1773165601518,2.37522113,2072.6,2072.3,0.46038406]
[1773165602014,0.972,2072.5,2072.3,1.20638392]
[1773165602193,0.972,2072.5,2072.4,0.46148406]
[1773165602603,1.45178845,2072.5,2072.4,0.0011]
[1773165604127,1.68586913,2072.9,2072.5,0.46038406]
[1773165604338,1.173,2072.8,2072.5,0.46038406]
[1773165604532,0.47978845,2072.7,2072.4,0.0011]
[1773165604706,0.47978845,2072.7,2072.4,0.46148406]
[1773165605091,0.47978845,2072.7,2072.2,0.46148406]
[1773165605488,0.47978845,2072.7,2072.2,0.0011]
[1773165606118,0.47978845,2072.5,2072.2,0.0011]
[1773165606346,0.47978845,2072.3,2072.2,0.0011]
[1773165606495,0.47978845,2072.3,2072.0,0.0011]
[1773165607139,1.174,2072.4,2072.1,0.46038406]
[1773165607551,0.974,2072.4,2072.2,0.39858722]
[1773165607753,1.175,2072.3,2072.2,0.39858722]
[1773165608050,1.68589912,2072.8,2072.3,0.39858722]
[1773165608222,1.20621441,2072.6,2072.3,0.39858722]
[1773165608957,2.38115934,2072.7,2072.3,1.60497069]
[1773165609326,2.86094779,2072.7,2072.1,0.39858722]
[1773165610245,0.47978845,2072.9,2072.3,0.93140722]
[1773165610443,1.176,2072.8,2072.4,0.39858722]
[1773165610850,0.47978845,2072.7,2072.2,1.60503447]
[1773165611030,1.20604866,2072.9,2072.3,0.39858722]
[1773165611230,1.176,2072.8,2072.3,0.39858722]
[1773165611431,1.65578845,2072.8,2072.3,0.39858722]
[1773165612162,2.86189381,2072.8,2072.4,1.20633082]
[1773165612361,1.65578845,2072.8,2072.4,1.60491804]
[1773165612861,2.86189581,2072.8,2072.4,1.60491804]
[1773165613639,1.176,2072.8,2072.4,1.60491804]
[1773165613933,0.47978845,2072.7,2072.0,0.39968722]
[1773165614159,1.20621441,2072.6,2072.2,1.20644725]
[1773165614357,0.47978845,2072.5,2072.0,1.20761911]
[1773165614562,0.47978845,2072.5,2072.4,0.0011]
[1773165614944,0.47978845,2072.5,2072.1,0.0011]
[1773165615298,0.47978845,2072.3,2071.9,0.0011]
[1773165616279,1.178,2072.2,2071.9,1.20771734]
[1773165616454,1.178,2072.2,2071.9,0.0011]
[1773165616780,0.47978845,2072.0,2071.7,0.0011]
[1773165617951,1.179,2071.9,2071.8,1.33109444]
[1773165618359,1.179,2071.9,2071.8,0.39968722]
[1773165618553,1.179,2071.9,2071.7,0.0011]
[1773165620280,2.38567456,2071.9,2071.7,0.0011]
[1773165620576,0.45709296,2071.8,2071.7,0.0011]
[1773165621205,0.45709296,2071.8,2071.5,0.0011]
[1773165622446,1.20673842,2071.7,2071.5,0.0011]
[1773165622582,1.66383138,2071.7,2071.5,0.0011]
[1773165623238,0.45709296,2071.2,2070.9,0.0011]
[1773165623507,0.45709296,2070.9,2070.5,0.0011]
[1773165623712,1.181,2070.8,2070.5,0.0011]
[1773165623915,0.45709296,2070.7,2070.0,0.40078722]
[1773165624084,0.45709296,2070.7,2069.8,0.40078722]
[1773165624409,1.2073795,2070.6,2070.1,1.33219444]
[1773165624586,1.2073795,2070.6,2070.1,0.40078722]
[1773165624784,1.66447246,2070.6,2069.9,1.33219444]
[1773165626120,1.66447246,2070.6,2070.0,0.40078722]
[1773165626312,1.183,2070.5,2070.3,1.20755446]
[1773165626624,4.82833482,2071.2,2070.4,0.44908706]
[1773165626625,2.39019266,2071.0,2070.4,0.44908706]
[1773165626786,2.39019266,2071.0,2070.5,0.40078722]
[1773165626988,2.39019266,2071.0,2070.6,0.04829518]
[1773165627187,4.82788928,2071.3,2070.9,1.33219444]
[1773165627188,1.183,2071.3,2070.9,1.33219444]
[1773165627491,2.34648297,2071.3,2070.7,0.93140722]
[1773165627686,2.80357593,2071.3,2070.6,0.40078722]
[1773165628096,0.45709296,2071.2,2070.1,0.0011]
[1773165628299,0.45709296,2071.2,2070.2,1.60835791]
[1773165628497,0.45709296,2071.0,2070.2,1.60835791]
[1773165629716,0.45709296,2071.0,2070.3,0.40078722]
[1773165629891,1.184,2070.9,2070.4,0.44908706]
[1773165630093,1.184,2070.9,2070.4,0.40078722]
[1773165630915,1.184,2070.9,2070.5,1.60822503]
[1773165633916,0.45709296,2071.2,2070.6,0.40078722]
[1773165634116,1.38614324,2071.5,2070.6,0.4490824]
[1773165634416,1.36427312,2071.5,2070.9,0.40078722]
[1773165634601,1.36427312,2071.5,2071.1,0.40078722]
[1773165634790,0.17927312,2071.5,2071.2,1.20702974]
[1773165634989,2.39168235,2071.8,2071.3,0.40078722]
[1773165635221,1.185,2071.8,2071.3,0.40078722]
[1773165635524,2.39168426,2071.8,2071.3,0.40078722]
[1773165635902,2.84877722,2071.8,2071.1,1.4285626]
[1773165636522,0.45709296,2071.7,2070.8,0.2215141]
[1773165636932,1.20679667,2071.6,2071.0,0.2215141]
[1773165637444,0.45709296,2071.5,2070.8,0.2215141]
[1773165637735,0.45709296,2071.5,2070.6,1.42884969]
[1773165637938,0.45709296,2071.5,2070.7,0.2215141]
[1773165638503,0.45709296,2071.9,2070.8,0.2215141]
[1773165638729,0.45709296,2071.8,2070.8,0.2215141]
[1773165638902,0.45709296,2071.6,2070.9,1.20720459]
[1773165639105,0.45709296,2071.6,2070.9,1.42871869]
[1773165639310,0.45709296,2071.6,2071.0,0.2215141]
[1773165640230,0.001,2071.5,2071.0,0.2215141]
[1773165640532,0.45809296,2071.5,2070.8,1.42873029]
[1773165641034,2.3919338,2071.4,2070.9,0.2215141]
[1773165641631,0.001,2071.5,2070.9,0.2215141]
[1773165641834,0.001,2071.5,2071.0,0.2215141]
[1773165642234,0.49024295,2072.0,2071.2,0.0215141]
[1773165642533,0.48924295,2071.9,2071.2,0.0215141]
[1773165642735,0.001,2072.0,2071.3,0.0215141]
[1773165642911,1.185,2071.9,2071.4,1.20691319]
[1773165643108,0.001,2072.0,2071.5,0.0215141]
[1773165644359,0.48924295,2071.9,2071.3,1.22844256]
[1773165644658,1.69558398,2072.4,2071.6,0.0215141]
[1773165644836,1.69558151,2072.4,2071.6,0.0215141]
[1773165645150,1.69558151,2072.4,2071.8,0.0215141]
[1773165645151,0.48924295,2072.4,2071.8,0.0215141]
[1773165645658,1.69557919,2072.4,2071.8,0.0215141]
[1773165645840,2.88057398,2072.4,2071.8,0.0215141]
[1773165646036,2.88057392,2072.4,2071.8,0.0215141]
[1773165647449,1.67424295,2072.4,2071.9,1.20662194]
[1773165648028,2.88059045,2072.4,2071.9,1.20662194]
[1773165649121,0.48924295,2072.3,2071.7,0.0215141]
[1773165650223,2.3913475,2072.4,2071.8,1.22819428]
[1773165650536,2.88059045,2072.4,2071.8,1.22819428]
[1773165652976,2.88059045,2072.4,2072.0,0.0011]
[1773165653172,0.001,2072.2,2072.0,0.0011]
[1773165656495,1.185,2072.5,2072.1,0.0205141]
[1773165656791,0.001,2072.6,2072.1,0.0205141]
[1773165656955,1.186,2072.6,2072.1,0.0205141]
[1773165657146,2.88196786,2072.6,2072.1,0.0205141]
[1773165657547,1.67574295,2072.6,2072.1,0.0205141]
[1773165657775,2.8819657,2072.6,2072.1,0.0205141]
[1773165658377,2.8819657,2072.6,2072.2,1.20644725]
[1773165659181,1.67574295,2072.6,2072.2,1.20644725]
[1773165660465,0.001,2072.6,2072.2,1.20644725]
[1773165660695,1.186,2072.9,2072.4,0.0205141]
[1773165661186,0.48974295,2072.8,2072.1,1.20646626]
[1773165661396,1.186,2072.9,2072.2,0.0205141]
[1773165661560,0.48974295,2072.8,2072.2,0.0205141]
[1773165661959,0.48974295,2072.8,2072.1,1.20646626]
[1773165662160,0.48974295,2072.8,2072.0,0.0011]
[1773165662690,0.48974295,2072.6,2072.0,0.0011]
[1773165663992,1.186,2072.5,2072.0,0.0216141]
[1773165664159,1.186,2072.5,2072.1,0.04096402]
[1773165664562,1.186,2072.5,2072.2,1.20644725]
[1773165664762,1.186,2072.5,2072.3,0.04096006]
[1773165665388,0.48974295,2072.4,2072.3,0.04096006]
[1773165665698,1.186,2072.5,2072.0,1.22817563]
[1773165665999,4.82453133,2072.8,2072.1,0.0216141]
[1773165666000,0.48974295,2072.8,2072.1,0.0216141]
[1773165666199,0.001,2072.4,2072.1,0.0216141]
[1773165666396,0.001,2072.4,2072.2,0.04096115]
[1773165666566,1.67574295,2072.7,2072.3,1.20638903]
[1773165666760,1.67574295,2072.7,2072.4,0.04095719]
[1773165667288,1.186,2072.7,2072.4,0.04095719]
[1773165668294,1.186,2072.7,2072.1,1.20756217]
[1773165668295,0.48974295,2072.6,2072.1,1.20756217]
[1773165668506,0.48974295,2072.6,2072.2,0.02448112]
[1773165668507,1.69601556,2072.5,2072.2,0.02448112]
[1773165668795,0.48974295,2072.4,2072.1,0.0011]
[1773165669007,0.48974295,2072.6,2072.1,1.20759641]
[1773165669666,1.186,2072.5,2072.1,0.0011]
[1773165669969,1.69586433,2072.8,2072.1,1.22810941]
[1773165670188,1.186,2072.7,2072.1,1.22810941]
[1773165670391,0.48974295,2072.8,2072.2,0.02063473]
[1773165670694,0.48974295,2072.8,2072.3,1.22690313]
[1773165670864,1.69584706,2072.8,2072.4,0.02063273]
[1773165671070,0.48974295,2072.7,2072.1,1.22806638]
[1773165671668,0.48974295,2072.7,2072.1,1.20755228]
[1773165672596,1.69590228,2072.7,2072.1,1.20755228]
[1773165673179,0.48974295,2072.6,2072.1,0.0011]
[1773165674611,0.48974295,2072.5,2072.1,0.0011]
[1773165674801,1.187,2072.4,2072.1,0.0011]
[1773165675716,0.48974295,2072.3,2072.1,0.0011]
[1773165676024,0.48974295,2072.3,2072.0,0.0011]
[1773165676186,0.48974295,2072.3,2071.8,0.0011]
[1773165676880,0.48919295,2072.1,2071.8,0.0011]
[1773165677080,0.48919295,2072.3,2071.8,0.0011]
[1773165678094,0.48919295,2072.3,2071.8,0.0227141]
[1773165678493,1.187,2072.4,2071.9,0.04770717]
[1773165678689,1.67619295,2072.4,2071.9,0.04770717]
[1773165679396,1.67619295,2072.4,2072.0,1.2065637]
[1773165679599,1.67619295,2072.4,2072.1,0.04770256]
[1773165680522,1.67719295,2072.4,2072.1,0.04770256]
[1773165681000,1.67719295,2072.4,2072.0,1.2076637]
[1773165681186,1.67719295,2072.4,2072.0,0.0011]
[1773165681517,0.48919295,2072.3,2072.0,0.0011]
[1773165681927,0.48919295,2072.3,2071.8,0.0011]
[1773165682145,0.48919295,2072.3,2071.8,1.20777363]
[1773165682508,1.67619295,2072.3,2071.8,1.20777363]
[1773165683031,0.48919295,2072.2,2071.8,0.0011]
[1773165683241,0.48919295,2072.2,2071.8,1.2077743]
[1773165683436,0.48919295,2072.2,2071.8,0.0011]
[1773165686922,0.48919295,2072.2,2071.8,1.20778018]
[1773165687123,0.48919295,2072.2,2071.9,0.04826487]
[1773165689261,0.48919295,2072.1,2071.8,0.0011]
[1773165689665,0.48919295,2072.1,2071.8,1.2077783]
[1773165690959,0.48919295,2072.1,2071.8,0.0011]
[1773165691143,0.46506051,2071.9,2071.8,0.0011]
[1773165693642,0.001,2072.1,2071.8,0.0011]
[1773165693843,0.46606051,2072.1,2071.8,0.0011]
[1773165694764,1.67257369,2072.1,2071.8,0.0011]
[1773165696143,0.001,2072.1,2071.8,0.0011]
[1773165696471,0.46606051,2072.1,2071.8,0.0011]
[1773165697296,0.46506051,2072.0,2071.8,0.0011]
[1773165697602,0.04926487,2072.1,2071.8,0.07097897]
[1773165697823,1.20733327,2072.4,2072.1,0.06987897]
[1773165697824,0.001,2072.4,2072.1,0.06987897]
[1773165698104,0.001,2073.0,2072.2,0.06987897]
[1773165698105,1.188,2072.7,2072.2,0.06987897]
[1773165698274,1.188,2072.7,2072.3,1.00169987]
[1773165698478,1.188,2072.7,2072.4,0.06987897]
[1773165698867,1.189,2073.0,2072.4,0.06987897]
[1773165699062,1.65406051,2073.0,2072.4,0.06987897]
[1773165699268,0.46506051,2072.9,2072.1,0.9318209]
[1773165699479,0.46506051,2072.9,2072.2,0.06987897]
[1773165699979,0.46506051,2072.9,2072.3,1.276268]
[1773165700373,0.46506051,2072.9,2072.4,0.06987897]
[1773165700621,1.189,2073.0,2072.4,0.06987897]
[1773165701511,0.51332538,2072.9,2072.3,1.20638903]
[1773165701876,0.46506051,2072.7,2071.9,1.20662194]
[1773165702087,0.46506051,2072.5,2071.9,1.27650091]
[1773165702413,0.46506051,2072.5,2072.0,0.06987897]
[1773165702775,0.46506051,2072.5,2071.9,1.20662194]
[1773165703176,0.46506051,2072.3,2071.9,1.20662194]
[1773165704528,0.46506051,2072.3,2071.8,0.0011]
[1773165704735,0.46506051,2072.2,2071.8,0.0011]
[1773165705400,0.46506051,2072.1,2071.8,0.0011]
[1773165705654,0.46506051,2072.1,2072.0,0.0011]
[1773165705933,0.46606051,2072.1,2071.6,1.20789076]
[1773165706128,0.46606051,2072.1,2071.6,0.0011]
[1773165706350,0.45840504,2071.9,2071.1,1.2070433]
[1773165706555,0.45840504,2071.9,2070.8,1.2072208]
[1773165706556,0.45840504,2071.5,2070.8,1.2072208]
[1773165706701,0.45840504,2071.5,2070.7,0.0011]
[1773165706903,0.45840504,2071.5,2070.7,1.20841334]
[1773165707100,0.45195238,2071.4,2070.7,0.0011]
[1773165707305,0.45195238,2071.1,2070.7,0.0011]
[1773165707515,0.45195238,2070.9,2070.7,0.0011]
[1773165707738,1.63995238,2070.9,2070.7,0.0011]
[1773165708413,1.188,2070.9,2070.7,0.0011]
[1773165708606,0.45195238,2071.1,2070.7,0.0011]
[1773165708912,1.187,2071.2,2070.7,0.0011]
[1773165710841,1.187,2071.4,2070.7,1.20842119]
[1773165711013,1.187,2071.4,2070.8,0.01008672]
[1773165711206,1.66734567,2071.4,2070.8,0.01008672]
[1773165711407,0.48034567,2071.3,2070.8,0.01008672]
[1773165711610,0.48034567,2071.3,2070.7,1.20842119]
[1773165712769,1.68733311,2071.3,2070.7,0.0011]
[1773165712958,1.06259417,2071.6,2070.8,0.49597897]
[1773165713743,0.48034567,2071.6,2070.8,0.49597897]
[1773165714375,0.48034567,2071.6,2070.9,0.52311774]
[1773165715275,0.48034567,2071.6,2071.0,1.2071463]
[1773165715475,0.48034567,2071.6,2071.1,0.04289519]
[1773165717258,0.48034567,2071.5,2070.7,1.20836289]
[1773165717574,0.48034567,2071.5,2070.8,4.8289431]
[1773165718078,0.52861054,2071.4,2070.8,4.8289431]
[1773165718380,5.28471099,2071.7,2070.8,4.8289431]
[1773165718381,2.1928963,2071.7,2070.9,0.49707897]
[1773165718588,0.001,2071.4,2070.9,0.49707897]
[1773165719079,0.001,2071.4,2071.0,0.04828585]
[1773165719787,0.48134567,2071.4,2071.0,1.25538794]
[1773165719991,0.48134567,2071.4,2070.9,1.20827043]
[1773165720200,0.48034567,2071.2,2070.9,0.0011]
[1773165720405,1.66634567,2071.1,2070.9,0.0011]
[1773165721764,1.186,2071.1,2070.9,0.0011]
[1773165722368,0.93786995,2071.7,2071.0,0.49597897]
[1773165722585,0.48034567,2071.6,2070.9,0.0011]
[1773165722994,0.48034567,2071.6,2070.9,0.49707897]
[1773165723294,0.48034567,2071.5,2070.9,0.0011]
[1773165723868,0.48034567,2071.4,2070.9,0.0011]
[1773165725977,1.185,2071.3,2070.9,0.0011]
[1773165726684,1.185,2071.3,2070.9,0.01091504]
[1773165727207,0.35355026,2071.7,2071.0,0.49597897]
[1773165727516,0.001,2072.1,2071.6,0.29597897]
[1773165727907,0.001,2072.1,2071.7,1.20673842]
[1773165729187,0.48134567,2072.1,2071.7,1.20673842]
[1773165729389,0.48034567,2072.5,2071.7,1.20673842]
[1773165729815,1.172,2072.6,2071.9,1.20662194]
[1773165729988,1.172,2072.6,2072.0,0.29597897]
[1773165730185,1.65234567,2072.6,2071.9,1.20662194]
[1773165732694,0.48034567,2072.5,2071.9,1.20662194]
[1773165733423,1.175,2072.7,2072.0,0.29597897]
[1773165733721,0.48134567,2073.0,2072.1,2.6278028]
[1773165734032,1.176,2072.9,2072.2,1.20644725]
[1773165734235,2.38204355,2072.9,2072.2,1.20644725]
[1773165734404,0.48034567,2072.8,2072.2,1.20644725]
[1773165736019,0.48034567,2072.8,2072.1,4.82578901]
[1773165737065,1.177,2072.7,2072.1,4.82578901]
[1773165737510,1.177,2072.7,2072.1,5.12176798]
[1773165737709,0.48034567,2072.8,2072.1,5.12176798]
[1773165737947,1.178,2072.7,2072.2,0.29597897]
[1773165738148,1.178,2072.7,2072.3,1.20638903]
[1773165738857,0.48034567,2072.6,2071.7,0.29597897]
[1773165739146,0.48034567,2072.6,2071.8,0.01239676]
[1773165739312,0.48034567,2072.6,2071.7,0.04826953]
[1773165740416,0.48034567,2072.6,2071.8,1.20668018]
[1773165740417,0.49660931,2072.4,2071.8,1.20668018]
[1773165740610,1.178,2072.3,2071.9,0.04826487]
[1773165741540,0.49660931,2072.9,2072.1,0.29597897]
[1773165741738,0.49660931,2072.9,2072.6,2.33182383]
[1773165741739,1.179,2072.9,2072.6,2.33182383]
[1773165742158,1.179,2072.9,2072.4,0.04825322]
[1773165742451,1.179,2072.9,2072.5,1.20627261]
[1773165744660,1.179,2072.9,2072.7,1.20615622]
[1773165746750,1.179,2072.9,2072.6,4.87301504]
[1773165746751,1.179,2072.9,2072.6,1.20617153]
[1773165747359,0.49660931,2072.8,2072.3,1.20746038]
[1773165748058,0.49660931,2072.8,2072.0,0.0011]
[1773165748372,0.49660931,2072.8,2072.0,1.20765432]
[1773165748681,0.49660931,2072.6,2072.0,0.0011]
[1773165750766,0.49660931,2072.4,2072.0,0.0011]
[1773165750945,1.67560931,2072.3,2072.0,0.0011]
[1773165751145,0.49660931,2072.2,2071.8,0.0011]
[1773165751645,1.18,2072.1,2071.8,0.0011]
[1773165751948,1.67660931,2072.1,2071.8,0.0011]
[1773165752449,0.49660931,2072.0,2071.8,0.0011]
[1773165752646,1.18,2072.1,2071.8,0.0011]
[1773165753639,2.38650842,2072.1,2071.8,0.0011]
[1773165753836,2.88311773,2072.1,2071.8,0.0011]
[1773165754341,1.67660931,2072.1,2071.8,0.0011]
[1773165754747,2.88312756,2072.1,2071.8,0.0011]
[1773165755139,2.88312598,2072.1,2071.8,0.0011]
[1773165755446,1.70305712,2072.2,2071.8,0.0011]
[1773165755648,0.49660931,2072.2,2071.8,0.0011]
[1773165755837,1.18,2072.1,2071.8,0.0011]
[1773165756661,0.49660931,2072.4,2071.8,0.0011]
[1773165756858,1.20728188,2072.5,2071.9,1.50370091]
[1773165756859,1.181,2072.3,2071.9,1.50370091]
[1773165757070,0.49660931,2072.2,2071.8,1.20774101]
[1773165757581,1.177,2072.1,2071.8,1.20774101]
[1773165758083,0.49660931,2072.0,2071.8,1.20777713]
[1773165758286,1.177,2072.1,2071.8,1.20777713]
[1773165758984,1.177,2072.1,2071.8,0.0011]
[1773165759887,0.49660931,2072.0,2071.5,0.0011]
[1773165760086,1.177,2072.1,2071.5,0.34645316]
[1773165760757,2.38350765,2072.1,2071.5,0.34645316]
[1773165761091,0.49660931,2072.0,2071.6,1.20679667]
[1773165761390,1.179,2071.9,2071.7,0.04826953]
[1773165762087,1.179,2072.0,2071.7,0.04826953]
[1773165762989,1.67560931,2072.0,2071.7,0.04826953]
[1773165763169,0.49660931,2071.9,2071.5,1.20792819]
[1773165763373,0.49660931,2071.9,2071.5,0.0011]
[1773165763693,0.49660931,2071.7,2071.1,1.20818794]
[1773165763856,0.49660931,2071.7,2071.1,0.0011]
[1773165764056,0.49660931,2071.7,2071.1,1.20817441]
[1773165764639,2.38557607,2072.0,2070.9,0.0011]
[1773165764640,0.49660931,2071.5,2070.9,0.0011]
[1773165765132,0.49660931,2071.3,2070.9,0.0011]
[1773165765411,1.18,2071.2,2070.9,0.0011]
[1773165765634,1.20689715,2071.5,2070.9,0.0011]
[1773165765923,0.49660931,2071.3,2070.9,0.0011]
[1773165766820,0.49660931,2071.3,2070.7,0.0011]
[1773165767121,0.49660931,2070.9,2070.4,0.0011]
[1773165767318,1.2071463,2071.0,2070.4,0.0011]
[1773165767319,0.46808531,2070.7,2070.4,0.0011]
[1773165767520,0.46808531,2070.7,2070.1,0.0011]
[1773165767816,0.46808531,2070.5,2069.9,0.0011]
[1773165769118,1.20755446,2070.3,2069.9,0.0011]
[1773165769425,0.45147044,2070.3,2069.9,0.0011]
[1773165769588,0.97229999,2070.2,2069.9,0.0011]
[1773165769902,1.18,2070.5,2070.0,2.33182383]
[1773165770422,1.18,2070.8,2070.0,2.53732603]